[Event "CCT Airthings Masters Play-In 2023"]
[Site "Online"]
[Date "2023.02.03"]
[Round "4"]
[White "Oleksandr_Bortnyk"]
[Black "MrTattaglia"]
[Result "1-0"]
[ECO "C48"]
[WhiteElo "2607"]
[BlackElo "2500"]
[Annotator "TA"]
[PlyCount "67"]
[EventDate "2023.02.03"]
[EventType "swiss"]
[EventCountry "NET"]
[SourceTitle "playchess.com"]
[Source "ChessBase"]
[SourceQuality "1"]
[TimeControl "600+2"]

{[%evp 10,67,0,0,8,7,12,3,2,0,1,-4,-7,-19,-30,-36,-39,-16,21,0,0,-42,-42,-96,-91,-84,-93,-95,-101,-111,-53,-54,-27,-42,-41,-40,-39,-33,0,0,0,-1,13,12,37,0,0,0,0,0,0,0,0,0,141,118,123,117,300,280]} 1. e4 {[%emt 0:00:19]} e5 {[%emt 0:00:07]} 2. Nf3 {[%emt 0:00:01]} Nc6 {[%emt 0:00:01]} 3. Bb5 {[%emt 0:00:01]} Nf6 {[%emt 0:00:02]} 4. Nc3 {[%emt 0:00:01]} Bc5 {[%emt 0:00:19]} 5. Bxc6 {[%emt 0:00:13]} dxc6 {[%emt 0:00:17]} 6. d3 {[%emt 0:00:00]} Bd6 {[%emt 0:00:16] C48: Four Knights: 4 Bb5, replies other than 4...Bb4.} 7. h3 {[%emt 0:00:14]} O-O {[%emt 0:00:04]} 8. Be3 {[%emt 0:00:07]} a5 {[%emt 0:00:12] [#] The position is equal.} 9. a3 $146 {[%emt 0:00:02]} ({Predecessor:} 9. Ne2 a4 10. a3 c5 11. g4 c4 12. Ng3 cxd3 13. Qxd3 Be6 14. O-O Rb8 15. c4 {0-1 Sun,F (2182)-Zhai,M (2374) CHN-chT Div-A 2022 (11.2)}) 9... a4 {[%emt 0:00:07]} 10. Qd2 {[%emt 0:00:28]} Re8 {[%emt 0:00:10]} 11. g4 {[%emt 0:00:05][%cal Bg2g4,Bg4g5][%mdl 32]} b5 {[%emt 0:00:10]} 12. Ne2 {[%emt 0:00:01][%cal Bc3e2,Be2g3,Bg3f5][%mdl 32]} c5 {[%emt 0:00:21]} 13. Ng3 {[%emt 0:00:03]} c4 {[%emt 0:00:02]} 14. g5 {[%emt 0:00:44]} Nd7 {[%emt 0:00:03]} 15. Nf5 {[%emt 0:00:03]} cxd3 {[%emt 0:00:05]} 16. Qxd3 {[%emt 0:00:22] [#]} ({Better is} 16. Nxd6 $1 $15 cxd6 17. Qxd3) 16... Nc5 $1 $17 {[%emt 0:00:03]} 17. Bxc5 {[%emt 0:02:15]} Bxc5 {[%emt 0:00:00]} 18. Qxd8 {[%emt 0:00:53]} Rxd8 {[%emt 0:00:00]} 19. Ng3 {[%emt 0:00:01]} (19. Nxe5 $2 {is the wrong capture.} Bxf5 20. exf5 Re8 $19) 19... Bb7 {[%emt 0:00:24]} (19... b4 $17 {aiming for ...bxa3.} 20. Nxe5 bxa3 21. bxa3 Ba6) 20. Nxe5 $15 {[%emt 0:00:09]} Bd4 {[%emt 0:00:19][%csl LRb2,LRe5]} (20... Re8 $5 {[%cal Re8e5]} 21. Nd3 Bxe4 22. Nxe4 Rxe4+ 23. Kd2 Bd6 $15) 21. Nd3 {[%emt 0:00:07]} c5 $1 {[%emt 0:00:03] Hoping for ...c4.} 22. Rb1 {[%emt 0:00:55]} c4 {[%emt 0:00:59]} 23. Nb4 {[%emt 0:00:02]} c3 {[%emt 0:00:01]} (23... Rf8 $5 {[%cal Rf7f5]}) 24. bxc3 {[%emt 0:00:02]} Bxc3+ {[%emt 0:00:02]} 25. Ke2 {[%emt 0:00:00][%cal Be1e2,Be2e3,Be3d2][%mdl 32]} Rd2+ {[%emt 0:01:20]} (25... f5 {simplifies} 26. gxf6 Bxf6 27. f3 g6) 26. Ke3 $1 {[%emt 0:00:03]} Rad8 {[%emt 0:00:02]} (26... Rc8 {simplifies} 27. Ne2 Bxb4 28. Rxb4 Rdxc2 29. Rd1 Kf8) 27. Rhc1 {[%emt 0:00:20]} (27. Ne2 $5 {[%cal Re2c3]} Bxb4 28. Rxb4 Rxc2 29. Rc1 Rxc1 30. Nxc1 $14) 27... R2d4 {[%emt 0:02:12] White must now prevent ...Bd2+.} 28. Nd3 $1 {[%emt 0:00:06]} b4 {[%emt 0:00:01]} 29. axb4 {[%emt 0:00:30]} Rc4 {[%emt 0:00:17]} 30. f3 {[%emt 0:00:44] Threatens to win with Ne2.} Bd4+ $1 {[%emt 0:00:53] This pair of bishops is nice.} 31. Kd2 $1 {[%emt 0:00:19]} a3 {[%emt 0:00:16]} (31... Bc3+ $1 $11 32. Ke3 Bd4+ 33. Kd2 Bc3+ 34. Ke3) 32. c3 {[%emt 0:00:13]} Ba6 {[%emt 0:01:42] [#] ...Be5 would be deadly.} 33. Ne2 $1 {[%emt 0:00:01]} (33. cxd4 $6 Rcxd4 34. Ke3 a2 $11) 33... a2 $2 {[%emt 0:00:12]} (33... Bxc3+ $16 {keeps fighting.} 34. Nxc3 Rcd4) 34. Ra1 {[%emt 0:00:03] Weighted Error Value: White=0.09 (flawless) /Black=0.21 (precise)} ({But not} 34. cxd4 $6 axb1=B 35. Rxb1 Bb5 $18) 1-0

[Event "CCT Airthings Masters Play-In 2023"]
[Site "Online"]
[Date "2023.02.03"]
[Round "4"]
[White "ChessLover"]
[Black "LiemLe"]
[Result "1/2-1/2"]
[ECO "D39"]
[WhiteElo "2604"]
[BlackElo "2678"]
[Annotator "TA"]
[PlyCount "74"]
[EventDate "2023.02.03"]
[EventType "swiss"]
[EventCountry "NET"]
[SourceTitle "playchess.com"]
[Source "ChessBase"]
[SourceQuality "1"]
[TimeControl "600+2"]

{[%evp 11,74,20,44,23,26,28,39,42,30,37,37,0,0,0,0,0,0,0,0,0,0,-43,0,0,0,-33,-44,-36,-27,-17,-8,-5,-6,-8,24,-14,-14,-14,-14,-14,0,-64,0,0,0,0,0,0,0,0,0,0,0,0,0,0,0,0,0,0,0,0,0,0,0]} 1. d4 {[%emt 0:00:03]} Nf6 {[%emt 0:00:04]} 2. c4 {[%emt 0:00:01]} e6 {[%emt 0:00:00]} 3. Nf3 {[%emt 0:00:01]} d5 {[%emt 0:00:03]} 4. Nc3 {[%emt 0:00:01]} dxc4 {[%emt 0:00:05]} 5. e4 {[%emt 0:00:25]} Bb4 {[%emt 0:00:02]} 6. Bg5 {[%emt 0:00:03]} b5 {[%emt 0:00:15]} 7. a4 {[%emt 0:00:45] D39: Queen's Gambit Declined: Ragozin Defence with 5 Bg5 dxc4.} c5 {[%emt 0:00:02]} 8. axb5 {[%emt 0:00:13]} cxd4 {[%emt 0:00:01]} 9. Nxd4 {[%emt 0:00:04] White is slightly better.} h6 {[%emt 0:00:01]} 10. Bxf6 {[%emt 0:00:22] 10.Be3 is not played anymore.} Qxf6 {[%emt 0:00:00] [#]} 11. Qa4 $146 {[%emt 0:00:20]} ({Predecessor:} 11. Bxc4 Bb7 12. O-O O-O 13. Nf3 Rd8 14. Qb3 Bc5 15. Na4 Bf8 16. Qe3 Nd7 17. Rad1 {0-1 Wei,Y (2727)-Aronian,L (2775) FTX Road to Miami KO 2022 (3.14)}) 11... Bc5 {[%emt 0:00:19][%cal Bb4c5,Bc5b6,Bb6c7,Bc7e5][%mdl 32]} 12. Nf3 {[%emt 0:00:43] Active counter play!} Nd7 {[%emt 0:00:03]} 13. Bxc4 {[%emt 0:00:16][%cal Ob5b6]} O-O {[%emt 0:00:12]} 14. O-O {[%emt 0:00:17]} Bb7 {[%emt 0:00:01]} 15. Rfd1 {[%emt 0:00:20]} Rfd8 {[%emt 0:00:06]} 16. Be2 {[%emt 0:00:30]} Bb6 {[%emt 0:00:13][%mdl 1024] Black has compensation.} (16... g5 $5 {[%cal Rg5g4]} 17. Rf1 Bb6 $15) 17. Qc2 {[%emt 0:01:03]} g5 {[%emt 0:00:27] [#] ...g4 would be deadly.} 18. Na4 {[%emt 0:00:25]} Rac8 {[%emt 0:00:05]} 19. Qb1 {[%emt 0:00:02]} Bc7 {[%emt 0:00:45]} 20. g3 {[%emt 0:00:36]} Ne5 {[%emt 0:00:13]} 21. Rxd8+ {[%emt 0:00:19]} Rxd8 {[%emt 0:00:14]} 22. Ra3 {[%emt 0:01:29]} Qe7 {[%emt 0:01:20]} 23. Rc3 {[%emt 0:00:17]} Nxf3+ {[%emt 0:00:13]} 24. Bxf3 {[%emt 0:00:00]} Be5 {[%emt 0:00:01]} 25. Rc4 {[%emt 0:00:01]} Qf6 {[%emt 0:01:15]} 26. Kg2 {[%emt 0:00:20]} ({Don't go for} 26. Nc5 $2 Qxf3 27. Nxb7 Rd1+ $19) ({Better is} 26. Bg2 $1 $11) 26... Rd4 {[%emt 0:00:07]} (26... Bd4 $1 $15 27. Qe1 g4 28. Bxg4 Bxe4+ 29. Kg1 (29. Qxe4 $2 {is the wrong capture.} Qxf2+ 30. Kh3 Qf1+ 31. Qg2 Qxc4 $19) 29... Bd5) 27. Rxd4 $11 {[%emt 0:01:01] The position is equal.} Bxd4 {[%emt 0:00:00] A strong pair of Bishops.} 28. Qc2 {[%emt 0:00:11]} h5 {[%emt 0:01:03]} 29. Bxh5 {[%emt 0:00:24]} Bxe4+ {[%emt 0:00:37][%mdl 64] [#] Deflection} 30. Qxe4 {[%emt 0:00:00]} Qxf2+ {[%emt 0:00:01]} 31. Kh3 {[%emt 0:00:00] Threatens to win with Qe2.} Qf1+ {[%emt 0:00:01]} 32. Qg2 {[%emt 0:00:00]} Qf5+ {[%emt 0:00:04]} 33. g4 {[%emt 0:00:01]} Qd3+ {[%emt 0:00:14]} 34. Qg3 {[%emt 0:00:01]} Qf1+ {[%emt 0:00:07]} 35. Qg2 {[%emt 0:00:01]} Qd3+ {[%emt 0:00:33]} 36. Qg3 {[%emt 0:00:01]} Qf1+ {[%emt 0:00:04]} 37. Qg2 {[%emt 0:00:01]} Qd3+ {[%emt 0:00:00] Weighted Error Value: White=0.12 (very precise) /Black=0.09 (flawless)} 1/2-1/2

[Event "CCT Airthings Masters Play-In 2023"]
[Site "Online"]
[Date "2023.02.03"]
[Round "4"]
[White "AlexanderL"]
[Black "Dedic8"]
[Result "0-1"]
[ECO "A17"]
[WhiteElo "2601"]
[BlackElo "2476"]
[Annotator "TA"]
[PlyCount "80"]
[EventDate "2023.02.03"]
[EventType "swiss"]
[EventCountry "NET"]
[SourceTitle "playchess.com"]
[Source "ChessBase"]
[SourceQuality "1"]
[TimeControl "600+2"]

{[%evp 9,80,12,8,12,5,0,0,0,6,0,0,0,0,0,0,0,0,0,0,0,12,-18,-13,-26,-15,-25,-18,-33,0,0,0,0,0,0,0,0,84,30,30,21,37,0,25,0,0,0,6,0,124,104,121,80,229,219,230,221,216,175,172,167,245,247,247,234,241,235,245,231,232,231,447,-825,-824]} 1. Nf3 {[%emt 0:00:03]} d5 {[%emt 0:00:04]} 2. e3 {[%emt 0:00:01]} Nf6 {[%emt 0:00:02]} 3. c4 {[%emt 0:00:01]} e6 {[%emt 0:00:01]} 4. Nc3 {[%emt 0:00:03][%cal Bb1c3,Bc3e2,Be2d4,Bd4f5][%mdl 32]} Nbd7 {[%emt 0:00:04]} 5. b3 {[%emt 0:00:11]} b6 {[%emt 0:00:02]} 6. Bb2 {[%emt 0:00:01] A17: English Opening: 1...Nf6 with ...Bb4.} Bb7 {[%emt 0:00:01]} 7. cxd5 {[%emt 0:00:17]} exd5 {[%emt 0:00:07]} 8. Rc1 {[%emt 0:00:24] The position is equal.} a6 {[%emt 0:00:02]} 9. Ne2 {[%emt 0:00:03]} Bd6 {[%emt 0:01:03]} 10. Ned4 {[%emt 0:00:06]} c5 $1 {[%emt 0:00:14]} 11. Nf5 {[%emt 0:00:03][%csl LRd6,LRg7]} Bf8 {[%emt 0:00:00]} 12. d4 {[%emt 0:00:20]} g6 {[%emt 0:00:01]} 13. Ng3 {[%emt 0:00:02]} Bg7 {[%emt 0:00:08]} 14. Be2 {[%emt 0:00:06]} O-O {[%emt 0:00:02]} 15. dxc5 {[%emt 0:00:40]} bxc5 {[%emt 0:00:00]} 16. O-O {[%emt 0:00:01] [#]} Re8 $146 {[%emt 0:00:02]} ({Predecessor:} 16... Qe7 17. Qc2 Rac8 18. Rfd1 Rfd8 19. Qb1 Nf8 20. Qa1 Ne6 21. Ne5 d4 22. Bc4 dxe3 23. fxe3 Nd5 24. Rf1 Bxe5 25. Bxe5 Nxe3 {1-0 Jacobson,B (2491)-Yoo,C (2457) Junior Speed Qual Americas blitz 2021 (2.1)}) 17. Qc2 {[%emt 0:00:10]} Qb6 {[%emt 0:00:25]} 18. Rfd1 {[%emt 0:00:05]} a5 {[%emt 0:00:06]} 19. a4 {[%emt 0:00:16]} Rac8 {[%emt 0:01:36]} 20. Bb5 {[%emt 0:00:05]} Re7 {[%emt 0:01:00]} 21. Ne2 {[%emt 0:01:34]} d4 {[%emt 0:00:58]} 22. exd4 {[%emt 0:00:02]} cxd4 {[%emt 0:00:11]} (22... Bh6 $11 {keeps the balance.}) 23. Qxc8+ {[%emt 0:00:01]} (23. Qb1 $16) 23... Bxc8 $11 {[%emt 0:00:08]} 24. Rxc8+ {[%emt 0:00:00]} Nf8 $1 {[%emt 0:00:14][%cal Od4d3]} 25. Bxd4 {[%emt 0:00:26]} (25. Nexd4 $5 {[%cal Rd4c6]} Nd5 26. Rc6 $16) 25... Qe6 {[%emt 0:00:24][%csl LRb3,LRc8] Black is weak on the dark squares} (25... Qb7 $5 {[%cal Rb7c8]} 26. Rcc1 Ne6 $11) 26. Rdc1 {[%emt 0:00:18]} Ne4 {[%emt 0:00:49]} 27. Bc4 {[%emt 0:00:18]} Qf5 {[%emt 0:00:39]} 28. Be3 {[%emt 0:00:58] A strong pair of Bishops.} h6 {[%emt 0:01:16]} (28... Nd6 $1 $11 29. Rc5 Qd7) 29. Ned4 $36 {[%emt 0:00:27][%mdl 2048] White is really pushing.} Qd7 {[%emt 0:00:10]} 30. Bb5 {[%emt 0:00:10]} Qd5 {[%emt 0:00:05]} (30... Qd6 $16 {might work better.}) 31. Nc6 $1 $18 {[%emt 0:00:57]} Rb7 {[%emt 0:00:01] [#]} 32. Rd8 $1 {[%emt 0:00:42]} ({Don't do} 32. Nxa5 $6 Rxb5 33. axb5 Qxb5 $16) 32... Qh5 {[%emt 0:00:23]} 33. Bd3 {[%emt 0:00:35]} ({Don't take} 33. Nxa5 Rxb5 34. axb5 Nc3 $16) 33... Nc3 {[%emt 0:00:09]} 34. Ncd4 {[%emt 0:01:23]} Nd5 {[%emt 0:00:02]} (34... Rc7 {keeps fighting.} 35. Bc4 Ne4) 35. Rc5 $1 {[%emt 0:00:08][%csl LRa5,LRd5]} Rd7 {[%emt 0:00:02]} 36. Rxd7 {[%emt 0:00:02]} Nxd7 {[%emt 0:00:02]} 37. Rxa5 {[%emt 0:00:01]} Ne5 {[%emt 0:00:18]} 38. Nxe5 {[%emt 0:00:09]} (38. Rxd5 $2 Nxf3+ 39. Nxf3 Qxd5 $19) 38... Bxe5 {[%emt 0:00:00]} 39. Nf3 {[%emt 0:00:05]} ({And not} 39. Rxd5 Bxh2+ 40. Kh1 Be5+ 41. Kg1 Bh2+ {[%mdl 64] Discovered Attack} 42. Kh1 Be5+ 43. Kg1 Bh2+ $11 {[%mdl 64] Discovered Attack}) 39... Bc7 $2 {[%emt 0:00:24] [#]} (39... Bxh2+ {was worth a try.} 40. Nxh2 Qd1+ 41. Bf1 Nxe3) 40. Bc4 $4 {[%emt 0:00:02][%mdl 8192]} Bxa5 {[%emt 0:00:02] An entertaining game by Dedic8.   Weighted Error Value: White=0.24 (precise) /Black=0.33} 0-1

[Event "CCT Airthings Masters Play-In 2023"]
[Site "Online"]
[Date "2023.02.03"]
[Round "4"]
[White "TigrVShlyape"]
[Black "Panjwani, Raja"]
[Result "1/2-1/2"]
[ECO "D02"]
[WhiteElo "2590"]
[BlackElo "2485"]
[Annotator "TA"]
[PlyCount "61"]
[EventDate "2023.02.03"]
[EventType "swiss"]
[EventCountry "NET"]
[SourceTitle "playchess.com"]
[Source "ChessBase"]
[SourceQuality "1"]
[TimeControl "600+2"]

{[%evp 10,61,14,14,33,12,33,37,59,25,20,24,22,20,32,19,31,28,33,13,41,31,39,16,29,30,15,21,24,41,42,0,0,0,0,0,0,0,0,0,47,0,0,0,0,0,5,7,8,0,0,0,0,0]} 1. d4 {[%emt 0:00:11]} Nf6 {[%emt 0:00:05]} 2. Bf4 {[%emt 0:00:02]} d5 {[%emt 0:00:12]} 3. e3 {[%emt 0:00:02]} e6 {[%emt 0:00:00]} 4. Nf3 {[%emt 0:00:01]} Bd6 {[%emt 0:00:01]} 5. Bxd6 {[%emt 0:00:06]} Qxd6 {[%emt 0:00:04]} 6. c4 {[%emt 0:00:00]} dxc4 {[%emt 0:00:29] D02: 1 d4 d5 2 Nf3 sidelines, including 2...Nf6 3 g3 and 2...Nf6 3 Bf4.} 7. Nc3 {[%emt 0:00:03]} a6 {[%emt 0:00:02]} 8. Bxc4 {[%emt 0:00:04]} b5 {[%emt 0:00:20] White is slightly better.} 9. Be2 {[%emt 0:00:02]} Bb7 {[%emt 0:00:01]} 10. Rc1 {[%emt 0:00:03]} Nbd7 {[%emt 0:00:14]} 11. O-O {[%emt 0:00:05]} O-O {[%emt 0:00:21]} 12. a3 {[%emt 0:00:02][%cal Ba2a3,Ba3a4][%mdl 32] [#]} Rfd8 $146 {[%emt 0:00:40]} ({Predecessor:} 12... b4 13. axb4 Qxb4 14. Qa4 Qb6 15. Qa3 Rab8 16. Na4 Qd6 17. Nc5 Nxc5 18. Rxc5 Qb6 {½-½ Ushenina,A (2416)-Badelka,O (2440) EU-Cup Online Final (Women) rapid 2020 (4.5)}) 13. b4 {[%emt 0:00:04]} h6 {[%emt 0:00:15]} 14. a4 {[%emt 0:01:06]} c6 {[%emt 0:00:42]} 15. Qb3 {[%emt 0:00:06]} Rab8 {[%emt 0:00:18]} 16. a5 {[%emt 0:00:10]} e5 {[%emt 0:00:12]} 17. dxe5 {[%emt 0:01:57]} Nxe5 {[%emt 0:00:02]} 18. Rfd1 {[%emt 0:00:02] Prevents c5} Qc7 {[%emt 0:00:20]} 19. Nxe5 {[%emt 0:00:48]} (19. Nd5 {is interesting.} Rxd5 20. Rxd5 Nxd5 21. Qxd5 Nxf3+ 22. Bxf3 Qxa5 23. Qe5) 19... Qxe5 {[%emt 0:00:02]} 20. Rxd8+ {[%emt 0:00:19]} Rxd8 {[%emt 0:00:00]} 21. Bf3 {[%emt 0:00:02]} Bc8 {[%emt 0:00:19]} 22. Ne2 {[%emt 0:00:19][%cal Bc3e2,Be2d4,Bd4f3][%mdl 32]} Bg4 $1 {[%emt 0:00:12]} 23. Nd4 {[%emt 0:00:45]} Bxf3 {[%emt 0:00:07]} 24. Nxf3 {[%emt 0:00:01]} Qd5 {[%emt 0:00:13]} (24... Qd6 $11) 25. Qc2 {[%emt 0:00:44]} (25. Nd4 $14) 25... Qd6 $1 $11 {[%emt 0:00:02] The position is equal.} 26. Nd4 {[%emt 0:00:54]} Nd5 {[%emt 0:00:21][%cal Bf6d5,Bd5b4,Bb4d3][%mdl 32]} 27. Qxc6 {[%emt 0:00:59]} Nxb4 {[%emt 0:00:08]} 28. Qxd6 {[%emt 0:00:05]} Rxd6 {[%emt 0:00:00]} 29. g3 {[%emt 0:00:09]} Nd3 {[%emt 0:00:10]} 30. Rc8+ {[%emt 0:00:04]} Kh7 {[%emt 0:00:01]} 31. Rc7 {[%emt 0:00:08] Weighted Error Value: White=0.08 (flawless) /Black=0.09 (flawless)} 1/2-1/2

[Event "CCT Airthings Masters Play-In 2023"]
[Site "Online"]
[Date "2023.02.03"]
[Round "4"]
[White "spicycaterpillar"]
[Black "SahajGrover"]
[Result "1/2-1/2"]
[ECO "B30"]
[WhiteElo "2582"]
[BlackElo "2672"]
[Annotator "TA"]
[PlyCount "27"]
[EventDate "2023.02.03"]
[EventType "swiss"]
[EventCountry "NET"]
[SourceTitle "playchess.com"]
[Source "ChessBase"]
[SourceQuality "1"]
[TimeControl "600+2"]

{[%evp 9,27,34,33,36,50,29,60,50,72,65,86,47,88,65,75,70,52,57,58,23]} 1. e4 {[%emt 0:00:17]} c5 {[%emt 0:00:08]} 2. Nf3 {[%emt 0:00:02]} Nc6 {[%emt 0:00:01]} 3. Bb5 {[%emt 0:00:04]} e5 {[%emt 0:00:01]} 4. O-O {[%emt 0:00:05]} Bd6 {[%emt 0:00:01]} 5. c3 {[%emt 0:00:12]} a6 {[%emt 0:00:01]} 6. Ba4 {[%emt 0:00:04] B30: Sicilian: 2...Nc6 3 Bb5, lines without ...g6.} b5 {[%emt 0:00:04]} 7. Bc2 {[%emt 0:00:10]} Bc7 $5 {[%emt 0:00:09][%mdl 4] [#] Leaves trodden paths.} 8. a4 $146 {[%emt 0:00:54] Hoping for axb5.} ({Predecessor:} 8. d4 d6 9. Be3 cxd4 10. cxd4 Nf6 11. dxe5 dxe5 12. Qxd8+ Bxd8 13. Nc3 O-O 14. Rac1 {1-0 Staechelin,R (1999)-Steiger,W (2274) Verbandsliga Suedbaden 2122 2021 (2.4)}) 8... Rb8 {[%emt 0:00:07]} 9. d4 {[%emt 0:00:30]} d6 {[%emt 0:00:05]} 10. h3 {[%emt 0:01:28]} h6 {[%emt 0:00:25]} 11. Be3 {[%emt 0:00:12] dxe5 would be deadly.} c4 {[%emt 0:01:56]} 12. Na3 {[%emt 0:01:21]} Nf6 {[%emt 0:00:08]} 13. dxe5 {[%emt 0:03:11]} dxe5 {[%emt 0:00:04]} 14. Bc5 {[%emt 0:00:14] Prevents Qe7.   Weighted Error Value: White=0.13 (very precise) /Black=0.15 (very precise)} (14. axb5 $5 axb5 15. Nxb5 Rxb5 16. Ba4 $14) 1/2-1/2